[Event "Live Chess"]
[Site "Chess.com"]
[Date "2024.06.02"]
[Round "-"]
[White "gmnorfolk"]
[Black "KyryloPoluliakh"]
[Result "1-0"]
[WhiteElo "2119"]
[BlackElo "1534"]
[TimeControl "300"]
[EndTime "8:05:42 PDT"]
[Termination "gmnorfolk won by resignation"]

1. c4 {[%clk 0:04:57.8]} 1... Nf6 {[%clk 0:04:55]} 2. Nc3 {[%clk 0:04:47]} 2...
g6 {[%clk 0:04:54.3]} 3. e4 {[%clk 0:04:44.2]} 3... Bg7 {[%clk 0:04:51.5]} 4. d4
{[%clk 0:04:44]} 4... O-O {[%clk 0:04:49.3]} 5. Be2 {[%clk 0:04:43.9]} 5... d6
{[%clk 0:04:47.5]} 6. Be3 {[%clk 0:04:43.3]} 6... Nc6 {[%clk 0:04:43.8]} 7. d5
{[%clk 0:04:41.5]} 7... Nb8 {[%clk 0:04:36.9]} 8. Nf3 {[%clk 0:04:39.7]} 8... e6
{[%clk 0:04:35.6]} 9. O-O {[%clk 0:04:38]} 9... exd5 {[%clk 0:04:33.6]} 10. cxd5
{[%clk 0:04:36.1]} 10... c6 {[%clk 0:04:32.7]} 11. dxc6 {[%clk 0:04:34.2]} 11...
Nxc6 {[%clk 0:04:31.5]} 12. Qd2 {[%clk 0:04:32.4]} 12... Ne5 {[%clk 0:04:25.5]}
13. Nxe5 {[%clk 0:04:30]} 13... dxe5 {[%clk 0:04:23.9]} 14. Rfd1 {[%clk
0:04:27.5]} 14... Be6 {[%clk 0:04:19.9]} 15. Qxd8 {[%clk 0:04:22.9]} 15... Rfxd8
{[%clk 0:04:18.2]} 16. Rxd8+ {[%clk 0:04:22.3]} 16... Rxd8 {[%clk 0:04:16.9]}
17. Bxa7 {[%clk 0:04:21.2]} 17... Bf8 {[%clk 0:04:08.2]} 18. Rd1 {[%clk
0:04:17.8]} 18... Rxd1+ {[%clk 0:04:04]} 19. Bxd1 {[%clk 0:04:15.5]} 19... Bb4
{[%clk 0:04:00]} 20. f3 {[%clk 0:04:01.1]} 20... Bxc3 {[%clk 0:03:58.1]} 21.
bxc3 {[%clk 0:04:01]} 21... Bxa2 {[%clk 0:03:56.4]} 22. Ba4 {[%clk 0:03:56.7]}
22... Bc4 {[%clk 0:03:50.7]} 23. Bb8 {[%clk 0:03:55.5]} 23... Kf8 {[%clk
0:03:41.7]} 24. Bxe5 {[%clk 0:03:53.6]} 24... Ke7 {[%clk 0:03:41]} 25. Kf2
{[%clk 0:03:47.8]} 25... b5 {[%clk 0:03:38.9]} 26. Bc2 {[%clk 0:03:45.8]} 26...
Nd7 {[%clk 0:03:33.3]} 27. Bc7 {[%clk 0:03:43.3]} 27... Nc5 {[%clk 0:03:28.9]}
28. Ke3 {[%clk 0:03:41.8]} 28... Ne6 {[%clk 0:03:24]} 29. Be5 {[%clk 0:03:36.8]}
29... f6 {[%clk 0:03:20.2]} 30. Bd4 {[%clk 0:03:35.7]} 30... Nxd4 {[%clk
0:03:09.8]} 31. cxd4 {[%clk 0:03:29]} 31... b4 {[%clk 0:03:08.9]} 32. d5 {[%clk
0:03:27.3]} 32... b3 {[%clk 0:03:07.1]} 33. Bb1 {[%clk 0:03:25.9]} 33... f5
{[%clk 0:03:02.6]} 34. Kd4 {[%clk 0:03:23.9]} 34... Bf1 {[%clk 0:02:58.9]} 35.
g3 {[%clk 0:03:21.1]} 35... fxe4 {[%clk 0:02:56.2]} 36. fxe4 {[%clk 0:03:18.5]}
36... Be2 {[%clk 0:02:54.2]} 37. e5 {[%clk 0:03:15.7]} 37... Bd1 {[%clk
0:02:50]} 38. d6+ {[%clk 0:03:11.7]} 38... Ke6 {[%clk 0:02:45.7]} 39. Kc3 {[%clk
0:03:08.1]} 39... Bg4 {[%clk 0:02:38.6]} 40. Kd4 {[%clk 0:02:14.5]} 40... Bd1
{[%clk 0:02:35.3]} 41. Bd3 {[%clk 0:02:08]} 41... Bc2 {[%clk 0:02:29.6]} 42. Kc3
{[%clk 0:02:02.3]} 42... Bd1 {[%clk 0:02:15.8]} 43. Bc4+ {[%clk 0:01:59.4]}
43... Kd7 {[%clk 0:02:13.7]} 44. Bxb3 {[%clk 0:01:56.8]} 44... Bg4 {[%clk
0:02:10.8]} 45. Kd4 {[%clk 0:01:54.7]} 45... h5 {[%clk 0:02:06.4]} 46. Kc5
{[%clk 0:01:53.4]} 46... Bf3 {[%clk 0:02:03.5]} 47. h4 {[%clk 0:01:49.5]} 47...
Bg4 {[%clk 0:01:57.8]} 48. Bc2 {[%clk 0:01:46.3]} 48... Ke6 {[%clk 0:01:48.7]}
49. Kd4 {[%clk 0:01:43.6]} 49... Kf7 {[%clk 0:01:44]} 50. Bb3+ {[%clk
0:01:42.1]} 50... Ke8 {[%clk 0:01:41.5]} 51. e6 {[%clk 0:01:40.7]} 51... Kd8
{[%clk 0:01:40.2]} 52. e7+ {[%clk 0:01:35.4]} 52... Kd7 {[%clk 0:01:38]} 53.
Ba4+ {[%clk 0:01:32.4]} 53... Kxd6 {[%clk 0:01:36.3]} 54. e8=Q {[%clk
0:01:31.6]} 54... Kc7 {[%clk 0:01:33.6]} 55. Kc5 {[%clk 0:01:28]} 1-0

[Event "Live Chess"]
[Site "Chess.com"]
[Date "2024.06.02"]
[Round "-"]
[White "lyricalschemes"]
[Black "santhoshrlokesh"]
[Result "1-0"]
[WhiteElo "2206"]
[BlackElo "1469"]
[TimeControl "300"]
[EndTime "8:05:44 PDT"]
[Termination "lyricalschemes won by resignation"]

1. e4 {[%clk 0:04:58.6]} 1... d5 {[%clk 0:04:59.4]} 2. exd5 {[%clk 0:04:57.3]}
2... e6 {[%clk 0:04:58.5]} 3. dxe6 {[%clk 0:04:54.2]} 3... Bxe6 {[%clk 0:04:58]}
4. d4 {[%clk 0:04:53.4]} 4... Bb4+ {[%clk 0:04:56.6]} 5. c3 {[%clk 0:04:52.2]}
5... Ba5 {[%clk 0:04:56.1]} 6. Nf3 {[%clk 0:04:51.5]} 6... Ne7 {[%clk
0:04:53.4]} 7. Bd3 {[%clk 0:04:51]} 7... Bg4 {[%clk 0:04:51.9]} 8. O-O {[%clk
0:04:46.4]} 8... O-O {[%clk 0:04:50.3]} 9. Bxh7+ {[%clk 0:04:44.6]} 9... Kxh7
{[%clk 0:04:46.4]} 10. Ng5+ {[%clk 0:04:41.9]} 10... Kg8 {[%clk 0:04:33.6]} 11.
Qxg4 {[%clk 0:04:41.8]} 11... Ng6 {[%clk 0:04:24.3]} 12. Qh5 {[%clk 0:04:32.7]}
12... Re8 {[%clk 0:03:59.1]} 13. Nxf7 {[%clk 0:04:21.5]} 13... Kxf7 {[%clk
0:03:53.8]} 14. Qxa5 {[%clk 0:04:18.2]} 14... b6 {[%clk 0:03:47.6]} 15. Qf5+
{[%clk 0:04:12.1]} 15... Qf6 {[%clk 0:03:43.7]} 16. Qd5+ {[%clk 0:04:11]} 16...
Qe6 {[%clk 0:03:31.1]} 17. Qxa8 {[%clk 0:04:08.2]} 17... Nd7 {[%clk 0:03:30.3]}
18. Qf3+ {[%clk 0:04:05.9]} 18... Nf6 {[%clk 0:03:27.4]} 19. Bg5 {[%clk
0:04:02.2]} 19... Qe1 {[%clk 0:03:07.2]} 20. Nd2 {[%clk 0:03:55.9]} 20... Qxd2
{[%clk 0:03:01.9]} 21. Bxd2 {[%clk 0:03:52.1]} 21... Nh4 {[%clk 0:02:58.2]} 22.
Qh3 {[%clk 0:03:43.8]} 22... Ng6 {[%clk 0:02:54.8]} 23. Rfe1 {[%clk 0:03:41]}
23... Rxe1+ {[%clk 0:02:54.1]} 24. Rxe1 {[%clk 0:03:37.4]} 1-0

[Event "Live Chess"]
[Site "Chess.com"]
[Date "2024.06.02"]
[Round "-"]
[White "agamilewska"]
[Black "ameetghasi100"]
[Result "0-1"]
[WhiteElo "1802"]
[BlackElo "2756"]
[TimeControl "300"]
[EndTime "8:05:45 PDT"]
[Termination "ameetghasi100 won by resignation"]

1. d4 {[%clk 0:04:57]} 1... c5 {[%clk 0:04:59.5]} 2. dxc5 {[%clk 0:04:55.9]}
2... Nf6 {[%clk 0:04:59.2]} 3. Nc3 {[%clk 0:04:54.5]} 3... e6 {[%clk 0:04:58.9]}
4. e4 {[%clk 0:04:53.6]} 4... Nc6 {[%clk 0:04:58]} 5. Nf3 {[%clk 0:04:52.4]}
5... Bxc5 {[%clk 0:04:57.5]} 6. Bg5 {[%clk 0:04:51.6]} 6... Qb6 {[%clk
0:04:55.6]} 7. Be3 {[%clk 0:04:43.1]} 7... Bxe3 {[%clk 0:04:54]} 8. fxe3 {[%clk
0:04:42.1]} 8... Qxb2 {[%clk 0:04:53.1]} 9. Ne2 {[%clk 0:04:31.6]} 9... Nxe4
{[%clk 0:04:51.9]} 10. Qc1 {[%clk 0:04:21]} 10... Qb4+ {[%clk 0:04:47.7]} 11. c3
{[%clk 0:04:20.3]} 11... Qa5 {[%clk 0:04:47.3]} 12. Nfd4 {[%clk 0:04:15]} 12...
d5 {[%clk 0:04:46.8]} 13. Nxc6 {[%clk 0:04:13.3]} 13... bxc6 {[%clk 0:04:46.4]}
14. g3 {[%clk 0:04:12.3]} 14... e5 {[%clk 0:04:45.5]} 15. Bg2 {[%clk 0:04:11.7]}
15... h5 {[%clk 0:04:45]} 16. Bxe4 {[%clk 0:04:09.7]} 16... dxe4 {[%clk
0:04:44.3]} 17. O-O {[%clk 0:04:07.6]} 17... h4 {[%clk 0:04:43.9]} 18. gxh4
{[%clk 0:04:04.2]} 18... Rxh4 {[%clk 0:04:42.8]} 19. Ng3 {[%clk 0:03:58.5]}
19... Be6 {[%clk 0:04:36.3]} 20. Qc2 {[%clk 0:03:49.8]} 20... Qc5 {[%clk
0:04:21.9]} 21. Rae1 {[%clk 0:03:40.5]} 21... Qc4 {[%clk 0:04:20.5]} 22. a3
{[%clk 0:03:31.5]} 22... O-O-O {[%clk 0:04:18.1]} 23. Qa2 {[%clk 0:03:20.6]}
23... Qxa2 {[%clk 0:04:16.1]} 0-1

[Event "Live Chess"]
[Site "Chess.com"]
[Date "2024.06.02"]
[Round "-"]
[White "Plimsol"]
[Black "ProfessorChess101"]
[Result "0-1"]
[WhiteElo "2372"]
[BlackElo "2742"]
[TimeControl "300"]
[EndTime "8:06:08 PDT"]
[Termination "ProfessorChess101 won on time"]

1. e4 {[%clk 0:04:58.3]} 1... e5 {[%clk 0:04:58.3]} 2. Nf3 {[%clk 0:04:57.3]}
2... Nc6 {[%clk 0:04:57.8]} 3. Bb5 {[%clk 0:04:56.6]} 3... a6 {[%clk 0:04:56]}
4. Bxc6 {[%clk 0:04:55.9]} 4... dxc6 {[%clk 0:04:54.8]} 5. O-O {[%clk
0:04:55.8]} 5... Qf6 {[%clk 0:04:53.7]} 6. d4 {[%clk 0:04:53.5]} 6... exd4
{[%clk 0:04:53.6]} 7. Bg5 {[%clk 0:04:52.7]} 7... Qd6 {[%clk 0:04:53.1]} 8. Nxd4
{[%clk 0:04:49.5]} 8... Be7 {[%clk 0:04:52.1]} 9. Be3 {[%clk 0:04:47.9]} 9...
Nf6 {[%clk 0:04:47.4]} 10. Nc3 {[%clk 0:04:46.2]} 10... Ng4 {[%clk 0:04:38.7]}
11. Nf3 {[%clk 0:04:38.9]} 11... Nxe3 {[%clk 0:04:32.5]} 12. fxe3 {[%clk
0:04:37.2]} 12... Bg4 {[%clk 0:04:10.5]} 13. h3 {[%clk 0:04:33.3]} 13... Be6
{[%clk 0:04:01]} 14. Nd4 {[%clk 0:04:27.7]} 14... O-O-O {[%clk 0:03:46.9]} 15.
Qh5 {[%clk 0:04:25.9]} 15... Qc5 {[%clk 0:03:19.3]} 16. e5 {[%clk 0:04:09.2]}
16... Qb6 {[%clk 0:03:07]} 17. Na4 {[%clk 0:03:59]} 17... Qa7 {[%clk 0:02:58.1]}
18. Nxe6 {[%clk 0:03:25.2]} 18... Qxe3+ {[%clk 0:02:52.9]} 19. Kh1 {[%clk
0:03:24.5]} 19... fxe6 {[%clk 0:02:52]} 20. Qf7 {[%clk 0:03:23.5]} 20... Rhe8
{[%clk 0:02:40.1]} 21. Qxe6+ {[%clk 0:03:20.7]} 21... Kb8 {[%clk 0:02:39.4]} 22.
Rae1 {[%clk 0:03:14.6]} 22... Qd4 {[%clk 0:02:33.4]} 23. Qb3 {[%clk 0:03:09.2]}
23... Bh4 {[%clk 0:02:14.8]} 24. c3 {[%clk 0:02:43.4]} 24... Qd5 {[%clk
0:01:51.4]} 25. Rd1 {[%clk 0:01:40.8]} 25... Qxe5 {[%clk 0:01:37.6]} 26. Qb4
{[%clk 0:01:30.6]} 26... Be7 {[%clk 0:01:28.9]} 27. Rxd8+ {[%clk 0:00:38.7]}
27... Rxd8 {[%clk 0:01:27.7]} 28. Qg4 {[%clk 0:00:33]} 28... h5 {[%clk
0:00:48.4]} 29. Qf5 {[%clk 0:00:26.5]} 29... Qxf5 {[%clk 0:00:41.6]} 30. Rxf5
{[%clk 0:00:25.5]} 30... Rd1+ {[%clk 0:00:41.1]} 31. Kh2 {[%clk 0:00:24.8]}
31... g6 {[%clk 0:00:40.7]} 32. Rf7 {[%clk 0:00:06.5]} 32... Bd6+ {[%clk
0:00:39.6]} 33. g3 {[%clk 0:00:06.1]} 33... b5 {[%clk 0:00:39.2]} 0-1

[Event "Live Chess"]
[Site "Chess.com"]
[Date "2024.06.02"]
[Round "-"]
[White "ivan_1968"]
[Black "Duke_of_Bebington"]
[Result "1-0"]
[WhiteElo "1802"]
[BlackElo "1574"]
[TimeControl "300"]
[EndTime "8:06:19 PDT"]
[Termination "ivan_1968 won by resignation"]

1. d4 {[%clk 0:04:56.6]} 1... d5 {[%clk 0:04:59]} 2. c4 {[%clk 0:04:55.6]} 2...
c6 {[%clk 0:04:58.3]} 3. Nf3 {[%clk 0:04:54.3]} 3... Nf6 {[%clk 0:04:56.8]} 4.
Qc2 {[%clk 0:04:53.3]} 4... e6 {[%clk 0:04:55.8]} 5. g3 {[%clk 0:04:51.9]} 5...
Be7 {[%clk 0:04:40.3]} 6. Bg2 {[%clk 0:04:50.1]} 6... O-O {[%clk 0:04:39.9]} 7.
O-O {[%clk 0:04:49.1]} 7... Nbd7 {[%clk 0:04:39.3]} 8. Nbd2 {[%clk 0:04:46]}
8... Nb6 {[%clk 0:04:30.3]} 9. Rd1 {[%clk 0:04:43.4]} 9... dxc4 {[%clk
0:04:27.1]} 10. Nxc4 {[%clk 0:04:41.9]} 10... Nxc4 {[%clk 0:04:27]} 11. Qxc4
{[%clk 0:04:40.7]} 11... Qb6 {[%clk 0:04:21.3]} 12. a3 {[%clk 0:04:19.1]} 12...
Nd5 {[%clk 0:04:16.5]} 13. e4 {[%clk 0:04:10.1]} 13... Nf6 {[%clk 0:04:15.4]}
14. Qe2 {[%clk 0:03:59.8]} 14... Rd8 {[%clk 0:04:05.6]} 15. h3 {[%clk
0:03:54.8]} 15... h6 {[%clk 0:04:03.2]} 16. Be3 {[%clk 0:03:52.7]} 16... Qc7
{[%clk 0:03:59.6]} 17. Rac1 {[%clk 0:03:44.6]} 17... b6 {[%clk 0:03:58.1]} 18.
Ne5 {[%clk 0:03:42.7]} 18... Bb7 {[%clk 0:03:51.7]} 19. b4 {[%clk 0:03:40.6]}
19... Nd7 {[%clk 0:03:45.3]} 20. Nxc6 {[%clk 0:03:12.1]} 20... Bxc6 {[%clk
0:03:42.8]} 21. d5 {[%clk 0:03:11.2]} 21... exd5 {[%clk 0:03:41.4]} 22. exd5
{[%clk 0:03:10]} 1-0

[Event "Live Chess"]
[Site "Chess.com"]
[Date "2024.06.02"]
[Round "-"]
[White "StoreySniper"]
[Black "LaupMiths"]
[Result "1-0"]
[WhiteElo "2489"]
[BlackElo "1824"]
[TimeControl "300"]
[EndTime "8:06:30 PDT"]
[Termination "StoreySniper won by resignation"]

1. e4 {[%clk 0:04:57.6]} 1... d6 {[%clk 0:04:58.2]} 2. d4 {[%clk 0:04:56.3]}
2... g6 {[%clk 0:04:57.6]} 3. c4 {[%clk 0:04:54.8]} 3... Nf6 {[%clk 0:04:55]} 4.
Nc3 {[%clk 0:04:54]} 4... Bg7 {[%clk 0:04:54.2]} 5. f3 {[%clk 0:04:52.3]} 5...
O-O {[%clk 0:04:52.7]} 6. Be3 {[%clk 0:04:51.5]} 6... c5 {[%clk 0:04:51.7]} 7.
d5 {[%clk 0:04:50.1]} 7... a6 {[%clk 0:04:46]} 8. Qd2 {[%clk 0:04:47.9]} 8...
Bd7 {[%clk 0:04:41.1]} 9. Bd3 {[%clk 0:04:44.1]} 9... b5 {[%clk 0:04:39.4]} 10.
cxb5 {[%clk 0:04:42.9]} 10... axb5 {[%clk 0:04:39]} 11. Bxb5 {[%clk 0:04:42.3]}
11... Qa5 {[%clk 0:04:33.5]} 12. Bc4 {[%clk 0:04:31.2]} 12... Na6 {[%clk
0:04:28.7]} 13. Nge2 {[%clk 0:04:28.8]} 13... Rfb8 {[%clk 0:04:23.1]} 14. O-O
{[%clk 0:04:25.9]} 14... Nc7 {[%clk 0:04:17.4]} 15. a4 {[%clk 0:04:10.9]} 15...
Qb4 {[%clk 0:04:04.7]} 16. b3 {[%clk 0:04:06.5]} 16... Nfe8 {[%clk 0:03:46.2]}
17. Ra2 {[%clk 0:03:56.7]} 17... Na6 {[%clk 0:03:38.7]} 18. Qd3 {[%clk
0:03:23.7]} 18... Qa5 {[%clk 0:03:30.3]} 19. Bxa6 {[%clk 0:03:14.4]} 19... Rxa6
{[%clk 0:03:30.2]} 20. Rb1 {[%clk 0:02:55.4]} 20... Rab6 {[%clk 0:03:28.5]} 21.
Qc2 {[%clk 0:02:38.5]} 21... Nc7 {[%clk 0:03:24.7]} 22. Bd2 {[%clk 0:02:34.9]}
22... Qa8 {[%clk 0:03:18]} 23. Bg5 {[%clk 0:02:26]} 23... Bd4+ {[%clk
0:02:56.8]} 24. Nxd4 {[%clk 0:02:13.7]} 24... cxd4 {[%clk 0:02:56.7]} 25. Ne2
{[%clk 0:02:12]} 25... f6 {[%clk 0:02:53]} 26. Bh6 {[%clk 0:02:05.5]} 26... Na6
{[%clk 0:02:50]} 27. Bd2 {[%clk 0:02:00.9]} 27... Qa7 {[%clk 0:02:46.1]} 28. Kh1
{[%clk 0:01:53.9]} 28... Nb4 {[%clk 0:02:44.4]} 29. Bxb4 {[%clk 0:01:52.7]}
29... Rxb4 {[%clk 0:02:44.3]} 30. Nc1 {[%clk 0:01:41.1]} 30... f5 {[%clk
0:02:31.8]} 31. Nd3 {[%clk 0:01:36.3]} 31... R4b6 {[%clk 0:02:26.6]} 32. b4
{[%clk 0:01:32.1]} 32... Rc8 {[%clk 0:02:22.5]} 33. Qf2 {[%clk 0:01:24.9]} 33...
Rb7 {[%clk 0:02:18.6]} 34. b5 {[%clk 0:01:17]} 34... Qa5 {[%clk 0:02:15]} 35.
Nb4 {[%clk 0:01:11.5]} 35... Rc4 {[%clk 0:02:09.2]} 36. Qd2 {[%clk 0:00:57.7]}
36... fxe4 {[%clk 0:01:57.9]} 37. fxe4 {[%clk 0:00:56.3]} 37... e5 {[%clk
0:01:51.3]} 38. h3 {[%clk 0:00:53.4]} 38... Rbc7 {[%clk 0:01:44.7]} 39. Nc6
{[%clk 0:00:52]} 39... Qxd2 {[%clk 0:01:41.8]} 40. Rxd2 {[%clk 0:00:50.6]} 40...
Rxa4 {[%clk 0:01:40.5]} 41. b6 {[%clk 0:00:46.7]} 41... Rb7 {[%clk 0:01:39.9]}
42. Nd8 {[%clk 0:00:39.3]} 42... Rb8 {[%clk 0:01:38.2]} 43. b7 {[%clk
0:00:37.8]} 43... Rc4 {[%clk 0:01:33.6]} 44. Ra2 {[%clk 0:00:33.8]} 44... Rxd8
{[%clk 0:01:29.5]} 45. Ra8 {[%clk 0:00:28.7]} 1-0

[Event "Live Chess"]
[Site "Chess.com"]
[Date "2024.06.02"]
[Round "-"]
[White "Queensandpawns"]
[Black "Andysav3"]
[Result "0-1"]
[WhiteElo "2235"]
[BlackElo "1895"]
[TimeControl "300"]
[EndTime "8:06:33 PDT"]
[Termination "Andysav3 won by resignation"]

1. e4 {[%clk 0:04:59.5]} 1... Nf6 {[%clk 0:04:57.8]} 2. e5 {[%clk 0:04:58.5]}
2... Nd5 {[%clk 0:04:56.9]} 3. c4 {[%clk 0:04:58.4]} 3... Nb6 {[%clk 0:04:55.5]}
4. d4 {[%clk 0:04:58.3]} 4... d6 {[%clk 0:04:54.5]} 5. exd6 {[%clk 0:04:56.7]}
5... cxd6 {[%clk 0:04:53.3]} 6. Nc3 {[%clk 0:04:55.5]} 6... g6 {[%clk
0:04:50.5]} 7. h4 {[%clk 0:04:53.6]} 7... h5 {[%clk 0:04:44.2]} 8. Nf3 {[%clk
0:04:50.9]} 8... Bg7 {[%clk 0:04:42.8]} 9. Be3 {[%clk 0:04:46]} 9... Bg4 {[%clk
0:04:38.1]} 10. Qd2 {[%clk 0:04:44.4]} 10... Nc6 {[%clk 0:04:29.5]} 11. d5
{[%clk 0:04:42.2]} 11... Bxf3 {[%clk 0:04:23.2]} 12. gxf3 {[%clk 0:04:40.5]}
12... Ne5 {[%clk 0:04:22.4]} 13. Bxb6 {[%clk 0:04:38.8]} 13... Qxb6 {[%clk
0:04:08]} 14. Be2 {[%clk 0:04:36]} 14... Rc8 {[%clk 0:04:01.1]} 15. Na4 {[%clk
0:04:32.4]} 15... Qa6 {[%clk 0:03:45.8]} 16. c5 {[%clk 0:04:29.8]} 16... Qxa4
{[%clk 0:03:41.3]} 17. cxd6 {[%clk 0:04:26.1]} 17... exd6 {[%clk 0:03:36.7]} 0-1

[Event "Live Chess"]
[Site "Chess.com"]
[Date "2024.06.02"]
[Round "-"]
[White "Vladyslav2008"]
[Black "Pandreq"]
[Result "1-0"]
[WhiteElo "2254"]
[BlackElo "1232"]
[TimeControl "300"]
[EndTime "8:06:41 PDT"]
[Termination "Vladyslav2008 won by checkmate"]

1. e4 {[%clk 0:04:56.7]} 1... Nf6 {[%clk 0:04:58.7]} 2. e5 {[%clk 0:04:54.5]}
2... Nd5 {[%clk 0:04:57.9]} 3. c4 {[%clk 0:04:53.5]} 3... Nb6 {[%clk 0:04:56.9]}
4. d4 {[%clk 0:04:53.4]} 4... d6 {[%clk 0:04:55.8]} 5. f4 {[%clk 0:04:53]} 5...
Nc6 {[%clk 0:04:55]} 6. d5 {[%clk 0:04:50.6]} 6... Nb4 {[%clk 0:04:39.6]} 7. a3
{[%clk 0:04:45]} 7... Na6 {[%clk 0:04:38.6]} 8. b4 {[%clk 0:04:42.7]} 8... dxe5
{[%clk 0:04:33.8]} 9. fxe5 {[%clk 0:04:41.4]} 9... e6 {[%clk 0:04:31.5]} 10.
dxe6 {[%clk 0:04:35.3]} 10... Bxe6 {[%clk 0:04:29.7]} 11. Qc2 {[%clk 0:04:33.4]}
11... Qd4 {[%clk 0:04:23.4]} 12. Bb2 {[%clk 0:04:31.9]} 12... Qe3+ {[%clk
0:04:06.4]} 13. Be2 {[%clk 0:04:24.1]} 13... Nxc4 {[%clk 0:03:55.5]} 14. Nf3
{[%clk 0:04:18.6]} 14... Nxb4 {[%clk 0:03:36.8]} 15. axb4 {[%clk 0:04:15.3]}
15... Bxb4+ {[%clk 0:03:36.3]} 16. Bc3 {[%clk 0:04:04.5]} 16... Bf5 {[%clk
0:03:21]} 17. Qa4+ {[%clk 0:04:00.7]} 17... Kd8 {[%clk 0:03:04]} 18. Qxb4 {[%clk
0:03:59.4]} 18... Bd3 {[%clk 0:02:53.1]} 19. Ra2 {[%clk 0:03:38.9]} 19... Bxb1
{[%clk 0:02:33.7]} 20. Qxc4 {[%clk 0:03:08.4]} 20... Bxa2 {[%clk 0:02:20.8]} 21.
Qxa2 {[%clk 0:03:07]} 21... Qc1+ {[%clk 0:02:18.1]} 22. Kf2 {[%clk 0:03:04.1]}
22... Qxc3 {[%clk 0:02:14.7]} 23. Qxf7 {[%clk 0:02:57.6]} 23... Qc5+ {[%clk
0:02:07.4]} 24. Kg3 {[%clk 0:02:55.6]} 24... Rf8 {[%clk 0:01:54.9]} 25. Rd1+
{[%clk 0:02:53]} 25... Kc8 {[%clk 0:01:51]} 26. Qd7+ {[%clk 0:02:51.5]} 26...
Kb8 {[%clk 0:01:46.2]} 27. Qd8+ {[%clk 0:02:51.4]} 27... Rxd8 {[%clk 0:01:45]}
28. Rxd8# {[%clk 0:02:51.3]} 1-0

[Event "Live Chess"]
[Site "Chess.com"]
[Date "2024.06.02"]
[Round "-"]
[White "MagnersCarlsberg2870"]
[Black "Larchikov"]
[Result "0-1"]
[WhiteElo "1768"]
[BlackElo "2123"]
[TimeControl "300"]
[EndTime "8:06:44 PDT"]
[Termination "Larchikov won by resignation"]

1. d4 {[%clk 0:04:57.7]} 1... Nf6 {[%clk 0:04:55.5]} 2. Nf3 {[%clk 0:04:56.2]}
2... d5 {[%clk 0:04:54]} 3. e3 {[%clk 0:04:54.8]} 3... c5 {[%clk 0:04:53.3]} 4.
Bd3 {[%clk 0:04:53.5]} 4... Nc6 {[%clk 0:04:52.3]} 5. c3 {[%clk 0:04:52.4]} 5...
Bg4 {[%clk 0:04:48.9]} 6. h3 {[%clk 0:04:51.2]} 6... Bxf3 {[%clk 0:04:48.1]} 7.
Qxf3 {[%clk 0:04:49.9]} 7... e5 {[%clk 0:04:47.6]} 8. Bb5 {[%clk 0:04:45.4]}
8... e4 {[%clk 0:04:45]} 9. Bxc6+ {[%clk 0:04:44.3]} 9... bxc6 {[%clk
0:04:43.7]} 10. Qe2 {[%clk 0:04:38.5]} 10... cxd4 {[%clk 0:04:40.8]} 11. exd4
{[%clk 0:04:36.8]} 11... Bd6 {[%clk 0:04:39.8]} 12. O-O {[%clk 0:04:32.8]} 12...
O-O {[%clk 0:04:38.2]} 13. f3 {[%clk 0:04:32]} 13... Re8 {[%clk 0:04:35.9]} 14.
Bg5 {[%clk 0:04:28.1]} 14... h6 {[%clk 0:04:32.3]} 15. Bxf6 {[%clk 0:04:23.8]}
15... Qxf6 {[%clk 0:04:32.2]} 16. fxe4 {[%clk 0:04:22.9]} 16... Qh4 {[%clk
0:04:18.7]} 17. e5 {[%clk 0:04:21.1]} 17... Bc7 {[%clk 0:04:15]} 18. Qf3 {[%clk
0:04:19.1]} 18... f6 {[%clk 0:04:05.8]} 19. Nd2 {[%clk 0:04:11.5]} 19... Re7
{[%clk 0:03:46.2]} 20. Rae1 {[%clk 0:04:09.4]} 20... fxe5 {[%clk 0:03:44.5]} 21.
dxe5 {[%clk 0:03:52.3]} 21... Bxe5 {[%clk 0:03:43.2]} 22. Qf5 {[%clk 0:03:43.9]}
22... Bd4+ {[%clk 0:03:28.4]} 23. Kh1 {[%clk 0:03:36.3]} 23... Rxe1 {[%clk
0:03:26.7]} 24. Qf7+ {[%clk 0:03:29]} 24... Kh8 {[%clk 0:03:24]} 25. cxd4 {[%clk
0:03:27.8]} 25... Rxf1+ {[%clk 0:03:20.5]} 26. Qxf1 {[%clk 0:03:18.9]} 26...
Qxd4 {[%clk 0:03:17.6]} 27. Nf3 {[%clk 0:03:14.4]} 27... Qxb2 {[%clk 0:03:16.1]}
28. Qa6 {[%clk 0:03:10.4]} 28... Qf6 {[%clk 0:03:11.4]} 29. Qb7 {[%clk
0:03:05.8]} 29... Rd8 {[%clk 0:03:09.8]} 30. Qxa7 {[%clk 0:03:04.4]} 30... d4
{[%clk 0:03:08.5]} 31. a4 {[%clk 0:02:58]} 31... d3 {[%clk 0:03:06.1]} 32. Nd2
{[%clk 0:02:56.3]} 32... Re8 {[%clk 0:02:58.8]} 33. Qc7 {[%clk 0:02:45.1]} 33...
Re1+ {[%clk 0:02:56.9]} 34. Kh2 {[%clk 0:02:43.8]} 34... Qe5+ {[%clk 0:02:56.5]}
35. Qxe5 {[%clk 0:02:42.1]} 35... Rxe5 {[%clk 0:02:56.4]} 36. Nc4 {[%clk
0:02:39.1]} 36... Re2 {[%clk 0:02:47.6]} 0-1

[Event "Live Chess"]
[Site "Chess.com"]
[Date "2024.06.02"]
[Round "-"]
[White "degringolade64"]
[Black "joellloyd"]
[Result "1-0"]
[WhiteElo "2085"]
[BlackElo "1897"]
[TimeControl "300"]
[EndTime "8:07:05 PDT"]
[Termination "degringolade64 won by resignation"]

1. e4 {[%clk 0:04:57.3]} 1... c6 {[%clk 0:04:59.6]} 2. d4 {[%clk 0:04:55.6]}
2... d5 {[%clk 0:04:59.5]} 3. e5 {[%clk 0:04:54.3]} 3... c5 {[%clk 0:04:58]} 4.
dxc5 {[%clk 0:04:52.8]} 4... Nc6 {[%clk 0:04:57.3]} 5. Nf3 {[%clk 0:04:51.1]}
5... Bg4 {[%clk 0:04:56.1]} 6. c3 {[%clk 0:04:49.3]} 6... Bxf3 {[%clk
0:04:51.8]} 7. Qxf3 {[%clk 0:04:46.9]} 7... Nxe5 {[%clk 0:04:51]} 8. Bb5+ {[%clk
0:04:44.8]} 8... Nc6 {[%clk 0:04:50.1]} 9. c4 {[%clk 0:04:39.9]} 9... e6 {[%clk
0:04:46.3]} 10. O-O {[%clk 0:04:25.1]} 10... Bxc5 {[%clk 0:04:41.8]} 11. Nc3
{[%clk 0:04:19.1]} 11... Nf6 {[%clk 0:04:39.5]} 12. Bg5 {[%clk 0:04:10.4]} 12...
O-O {[%clk 0:03:50.7]} 13. Bxf6 {[%clk 0:03:58.8]} 13... Qxf6 {[%clk 0:03:45.6]}
14. Qxf6 {[%clk 0:03:57]} 14... gxf6 {[%clk 0:03:45.5]} 15. cxd5 {[%clk
0:03:55.8]} 15... exd5 {[%clk 0:03:34.6]} 16. Nxd5 {[%clk 0:03:54]} 16... Nd4
{[%clk 0:03:30.3]} 17. Nxf6+ {[%clk 0:03:35.2]} 17... Kg7 {[%clk 0:03:28.7]} 18.
Ne4 {[%clk 0:03:34.8]} 18... Bb6 {[%clk 0:03:11.1]} 19. Bd3 {[%clk 0:03:20.1]}
19... Rfe8 {[%clk 0:02:55.4]} 20. Rad1 {[%clk 0:03:15.2]} 20... Rac8 {[%clk
0:02:42.3]} 21. Nd6 {[%clk 0:03:13.1]} 1-0